[Event "Betsys MČR v online bleskovém šachu 2021"]
[Site "Chess.com"]
[Date "2021.04.17"]
[Round "5"]
[White "Gicko13"]
[Black "CZpeeeter"]
[Result "1/2-1/2"]
[WhiteElo "2026"]
[BlackElo "1733"]
[TimeControl "180+1"]
[EndTime "9:48:23 PDT"]
[Termination "Remíza opakováním pozice"]

1. e4 {[%clk 0:03:00.9]} 1... g6 {[%clk 0:02:57.5]} 2. d4 {[%clk 0:03:00.4]}
2... c6 {[%clk 0:02:57.7]} 3. Nc3 {[%clk 0:02:57]} 3... d5 {[%clk 0:02:50.9]} 4.
Nf3 {[%clk 0:02:54.7]} 4... Bg7 {[%clk 0:02:50.3]} 5. h3 {[%clk 0:02:53.7]} 5...
Nf6 {[%clk 0:02:46]} 6. Bd3 {[%clk 0:02:36.3]} 6... dxe4 {[%clk 0:02:37.5]} 7.
Nxe4 {[%clk 0:02:35.6]} 7... O-O {[%clk 0:02:22.2]} 8. O-O {[%clk 0:02:21.4]}
8... Be6 {[%clk 0:02:21.4]} 9. b3 {[%clk 0:01:56.2]} 9... Bd5 {[%clk 0:02:10.2]}
10. Nxf6+ {[%clk 0:01:49.7]} 10... Bxf6 {[%clk 0:02:09.8]} 11. Ne5 {[%clk
0:01:32.1]} 11... Qd6 {[%clk 0:01:38.7]} 12. Bb2 {[%clk 0:01:25.9]} 12... Nd7
{[%clk 0:01:30.6]} 13. c4 {[%clk 0:01:18.9]} 13... Be6 {[%clk 0:01:20.9]} 14.
Qe2 {[%clk 0:01:17]} 14... Qc7 {[%clk 0:01:11.5]} 15. Rad1 {[%clk 0:01:11.8]}
15... Rad8 {[%clk 0:01:10.1]} 16. Bb1 {[%clk 0:01:10.6]} 16... Nxe5 {[%clk
0:01:07.3]} 17. dxe5 {[%clk 0:01:08.3]} 17... Bg7 {[%clk 0:01:06.6]} 18. h4
{[%clk 0:00:43.9]} 18... c5 {[%clk 0:00:47.1]} 19. h5 {[%clk 0:00:29.6]} 19...
Rd7 {[%clk 0:00:43.2]} 20. Rxd7 {[%clk 0:00:27.8]} 20... Qxd7 {[%clk 0:00:43.2]}
21. Rd1 {[%clk 0:00:26.2]} 21... Qc7 {[%clk 0:00:42.7]} 22. Rd2 {[%clk
0:00:16.2]} 22... Rd8 {[%clk 0:00:39.6]} 23. hxg6 {[%clk 0:00:16.4]} 23... hxg6
{[%clk 0:00:38.2]} 24. Rxd8+ {[%clk 0:00:16.2]} 24... Qxd8 {[%clk 0:00:37.7]}
25. Qd3 {[%clk 0:00:16.7]} 25... Qxd3 {[%clk 0:00:35.8]} 26. Bxd3 {[%clk
0:00:17.6]} 26... b6 {[%clk 0:00:35.4]} 27. f4 {[%clk 0:00:17.5]} 27... f5
{[%clk 0:00:31.4]} 28. exf6 {[%clk 0:00:17.1]} 28... exf6 {[%clk 0:00:30.8]} 29.
Bxg6 {[%clk 0:00:17.1]} 29... f5 {[%clk 0:00:27.2]} 30. Bxg7 {[%clk 0:00:15.6]}
30... Kxg7 {[%clk 0:00:26.9]} 31. Bh5 {[%clk 0:00:16.2]} 31... Kh6 {[%clk
0:00:23.9]} 32. Bf3 {[%clk 0:00:16]} 32... Kg6 {[%clk 0:00:23.1]} 33. Kf2 {[%clk
0:00:16.2]} 33... Kf6 {[%clk 0:00:22.9]} 34. Kg3 {[%clk 0:00:15.9]} 34... Bf7
{[%clk 0:00:19.9]} 35. Kh4 {[%clk 0:00:15.7]} 35... Be8 {[%clk 0:00:18]} 36. Bd1
{[%clk 0:00:15.3]} 36... b5 {[%clk 0:00:17.1]} 37. a4 {[%clk 0:00:13.3]} 37...
bxc4 {[%clk 0:00:15]} 38. bxc4 {[%clk 0:00:13.4]} 38... Bf7 {[%clk 0:00:13.6]}
39. Be2 {[%clk 0:00:12.4]} 39... a5 {[%clk 0:00:13.5]} 40. g4 {[%clk 0:00:11.2]}
40... fxg4 {[%clk 0:00:13.5]} 41. Kxg4 {[%clk 0:00:11.3]} 41... Be8 {[%clk
0:00:12.8]} 42. Bd1 {[%clk 0:00:11.1]} 42... Bc6 {[%clk 0:00:13.1]} 43. Kg3
{[%clk 0:00:06.7]} 43... Be4 {[%clk 0:00:12.5]} 44. Kf2 {[%clk 0:00:05.9]} 44...
Bd3 {[%clk 0:00:10.8]} 45. Bb3 {[%clk 0:00:06]} 45... Kf5 {[%clk 0:00:10.8]} 46.
Ke3 {[%clk 0:00:06.5]} 46... Bb1 {[%clk 0:00:09.7]} 47. Bd1 {[%clk 0:00:04.5]}
47... Be4 {[%clk 0:00:07.2]} 48. Be2 {[%clk 0:00:04.4]} 48... Bc2 {[%clk
0:00:05.6]} 49. Bf3 {[%clk 0:00:04]} 49... Bxa4 {[%clk 0:00:04.8]} 50. Bg2
{[%clk 0:00:03.6]} 50... Bb3 {[%clk 0:00:03.9]} 51. Bh3+ {[%clk 0:00:04.2]}
51... Kf6 {[%clk 0:00:03.7]} 52. Bf1 {[%clk 0:00:04.8]} 52... Kf5 {[%clk
0:00:03.3]} 53. Bh3+ {[%clk 0:00:04.4]} 53... Kf6 {[%clk 0:00:03.6]} 54. Bf1
{[%clk 0:00:04.7]} 54... Kf5 {[%clk 0:00:03.8]} 55. Bh3+ {[%clk 0:00:05.4]}
1/2-1/2

[Event "Betsys MČR v online bleskovém šachu 2021"]
[Site "Chess.com"]
[Date "2021.04.17"]
[Round "5"]
[White "Federer302"]
[Black "EDA16"]
[Result "1/2-1/2"]
[WhiteElo "1570"]
[BlackElo "1345"]
[TimeControl "180+1"]
[EndTime "9:48:25 PDT"]
[Termination "Remíza – nedostatek materiálu"]

1. e4 {[%clk 0:03:00.9]} 1... c5 {[%clk 0:02:56.6]} 2. Nf3 {[%clk 0:03:00.1]}
2... d6 {[%clk 0:02:56.5]} 3. d4 {[%clk 0:02:59]} 3... cxd4 {[%clk 0:02:55.2]}
4. Nxd4 {[%clk 0:02:59.1]} 4... Nf6 {[%clk 0:02:54.9]} 5. Nc3 {[%clk 0:02:58.8]}
5... g6 {[%clk 0:02:54.3]} 6. f3 {[%clk 0:02:53.5]} 6... Bg7 {[%clk 0:02:53.8]}
7. Be3 {[%clk 0:02:52.7]} 7... O-O {[%clk 0:02:53.3]} 8. Be2 {[%clk 0:02:52.1]}
8... Qc7 {[%clk 0:02:52.9]} 9. O-O {[%clk 0:02:48.1]} 9... Nc6 {[%clk
0:02:52.4]} 10. Qd2 {[%clk 0:02:45.4]} 10... Nxd4 {[%clk 0:02:50.7]} 11. Bxd4
{[%clk 0:02:43.3]} 11... Be6 {[%clk 0:02:45]} 12. Nb5 {[%clk 0:02:21.2]} 12...
Qc6 {[%clk 0:02:33.3]} 13. Nxa7 {[%clk 0:02:15.1]} 13... Qd7 {[%clk 0:02:17.8]}
14. Nb5 {[%clk 0:02:07.8]} 14... Rfc8 {[%clk 0:02:08.5]} 15. Nc3 {[%clk
0:01:56.1]} 15... Rc7 {[%clk 0:02:05.2]} 16. Be3 {[%clk 0:01:53.1]} 16... Rac8
{[%clk 0:02:03.4]} 17. Bh6 {[%clk 0:01:51.8]} 17... d5 {[%clk 0:01:57]} 18. Bxg7
{[%clk 0:01:50.9]} 18... Kxg7 {[%clk 0:01:55.1]} 19. exd5 {[%clk 0:01:42.3]}
19... Nxd5 {[%clk 0:01:52.8]} 20. Nxd5 {[%clk 0:01:40.8]} 20... Qxd5 {[%clk
0:01:50]} 21. Qxd5 {[%clk 0:01:34.9]} 21... Bxd5 {[%clk 0:01:48.8]} 22. c3
{[%clk 0:01:34.9]} 22... e5 {[%clk 0:01:45.6]} 23. Rfd1 {[%clk 0:01:33.5]} 23...
Be6 {[%clk 0:01:40.7]} 24. Rd2 {[%clk 0:01:26.9]} 24... Bc4 {[%clk 0:01:37.8]}
25. Bxc4 {[%clk 0:01:25.7]} 25... Rxc4 {[%clk 0:01:36.4]} 26. Rd7 {[%clk
0:01:24.1]} 26... R8c7 {[%clk 0:01:33.9]} 27. Rxc7 {[%clk 0:01:23.3]} 27... Rxc7
{[%clk 0:01:32.5]} 28. Re1 {[%clk 0:01:18]} 28... Kf6 {[%clk 0:01:29.9]} 29. Re4
{[%clk 0:01:17.9]} 29... Kf5 {[%clk 0:01:27.6]} 30. a4 {[%clk 0:01:16.2]} 30...
Rd7 {[%clk 0:01:22.9]} 31. b4 {[%clk 0:01:07.8]} 31... Rd1+ {[%clk 0:01:17.9]}
32. Kf2 {[%clk 0:01:07.9]} 32... Rc1 {[%clk 0:01:15.9]} 33. Rc4 {[%clk
0:01:02.9]} 33... h5 {[%clk 0:01:09.9]} 34. a5 {[%clk 0:00:55.7]} 34... g5
{[%clk 0:01:08.8]} 35. Rc7 {[%clk 0:00:51.7]} 35... g4 {[%clk 0:01:04.7]} 36.
fxg4+ {[%clk 0:00:48]} 36... hxg4 {[%clk 0:01:02.2]} 37. Rxf7+ {[%clk
0:00:47.5]} 37... Ke4 {[%clk 0:00:59.9]} 38. Rxb7 {[%clk 0:00:47.3]} 38... Rxc3
{[%clk 0:00:57.9]} 39. a6 {[%clk 0:00:36.5]} 39... Ra3 {[%clk 0:00:53.7]} 40. a7
{[%clk 0:00:35.7]} 40... Kd3 {[%clk 0:00:52.6]} 41. Rd7+ {[%clk 0:00:28.1]}
41... Kc4 {[%clk 0:00:50.1]} 42. h4 {[%clk 0:00:17.8]} 42... gxh3 {[%clk
0:00:47.1]} 43. gxh3 {[%clk 0:00:17.7]} 43... Kxb4 {[%clk 0:00:38.2]} 44. Re7
{[%clk 0:00:14.5]} 44... Kb5 {[%clk 0:00:33.7]} 45. Rxe5+ {[%clk 0:00:13.7]}
45... Kb6 {[%clk 0:00:33]} 46. Re7 {[%clk 0:00:12.8]} 46... Kc6 {[%clk 0:00:28]}
47. h4 {[%clk 0:00:12.8]} 47... Kd6 {[%clk 0:00:27.2]} 48. Rg7 {[%clk
0:00:12.7]} 48... Ke6 {[%clk 0:00:25.6]} 49. h5 {[%clk 0:00:12.4]} 49... Kf6
{[%clk 0:00:25.1]} 50. Rb7 {[%clk 0:00:12.4]} 50... Kg5 {[%clk 0:00:22.5]} 51.
Rb5+ {[%clk 0:00:10.8]} 51... Kh6 {[%clk 0:00:19.9]} 52. Rb8 {[%clk 0:00:05.3]}
52... Rxa7 {[%clk 0:00:18.8]} 53. Rb5 {[%clk 0:00:04.4]} 53... Rg7 {[%clk
0:00:10.5]} 54. Kf3 {[%clk 0:00:04.2]} 54... Rg5 {[%clk 0:00:09.3]} 55. Rxg5
{[%clk 0:00:03.5]} 55... Kxg5 {[%clk 0:00:08.9]} 56. h6 {[%clk 0:00:03.8]} 56...
Kxh6 {[%clk 0:00:08.9]} 1/2-1/2

[Event "Betsys MČR v online bleskovém šachu 2021"]
[Site "Chess.com"]
[Date "2021.04.17"]
[Round "5"]
[White "pburak"]
[Black "Kamilotka"]
[Result "1/2-1/2"]
[WhiteElo "1200"]
[BlackElo "1626"]
[TimeControl "180+1"]
[EndTime "9:48:28 PDT"]
[Termination "Remíza opakováním pozice"]

1. e4 {[%clk 0:02:59.6]} 1... e5 {[%clk 0:02:59.5]} 2. Nf3 {[%clk 0:02:58.5]}
2... Nc6 {[%clk 0:02:59.5]} 3. Bb5 {[%clk 0:02:57.9]} 3... d6 {[%clk 0:02:59.2]}
4. h3 {[%clk 0:02:54.2]} 4... Nf6 {[%clk 0:02:58.3]} 5. d3 {[%clk 0:02:49.1]}
5... a6 {[%clk 0:02:58]} 6. Ba4 {[%clk 0:02:48.2]} 6... Bd7 {[%clk 0:02:57.4]}
7. O-O {[%clk 0:02:45.1]} 7... Be7 {[%clk 0:02:56.6]} 8. Bg5 {[%clk 0:02:40.5]}
8... h6 {[%clk 0:02:53.8]} 9. Bh4 {[%clk 0:02:39.7]} 9... O-O {[%clk 0:02:53.4]}
10. Nc3 {[%clk 0:02:36.8]} 10... Nh7 {[%clk 0:02:53.1]} 11. Bxe7 {[%clk
0:02:34.5]} 11... Qxe7 {[%clk 0:02:52.9]} 12. Ne2 {[%clk 0:02:26.2]} 12... Ng5
{[%clk 0:02:51.7]} 13. Ng3 {[%clk 0:02:23.9]} 13... f5 {[%clk 0:02:33.8]} 14.
Nxg5 {[%clk 0:02:15]} 14... Qxg5 {[%clk 0:02:33.2]} 15. Qh5 {[%clk 0:02:12.1]}
15... Qxh5 {[%clk 0:02:23.9]} 16. Nxh5 {[%clk 0:02:09.8]} 16... f4 {[%clk
0:02:21.9]} 17. d4 {[%clk 0:01:37.6]} 17... b5 {[%clk 0:02:14.8]} 18. Bb3+
{[%clk 0:01:34.2]} 18... Kh8 {[%clk 0:02:14]} 19. dxe5 {[%clk 0:01:28.3]} 19...
dxe5 {[%clk 0:02:12.5]} 20. Rad1 {[%clk 0:01:24.8]} 20... Be8 {[%clk 0:02:12]}
21. Bd5 {[%clk 0:01:21]} 21... Bxh5 {[%clk 0:01:55.8]} 22. Bxc6 {[%clk
0:01:18.6]} 22... Rad8 {[%clk 0:01:52]} 23. f3 {[%clk 0:01:08.6]} 23... Bg6
{[%clk 0:01:39.3]} 24. Kf2 {[%clk 0:01:03.9]} 24... Bf7 {[%clk 0:01:18.1]} 25.
a3 {[%clk 0:01:01.7]} 25... Bc4 {[%clk 0:01:17.1]} 26. Rfe1 {[%clk 0:00:58.2]}
26... Bf7 {[%clk 0:01:11.2]} 27. b3 {[%clk 0:00:53.8]} 27... Kg8 {[%clk
0:01:05.7]} 28. Ke2 {[%clk 0:00:49.6]} 28... Kh8 {[%clk 0:01:03]} 29. Rxd8
{[%clk 0:00:47.9]} 29... Rxd8 {[%clk 0:01:02.6]} 30. Rd1 {[%clk 0:00:47.4]}
30... Rxd1 {[%clk 0:00:44.5]} 31. Kxd1 {[%clk 0:00:46.2]} 31... Kg8 {[%clk
0:00:43.1]} 32. Kd2 {[%clk 0:00:45.3]} 32... Kf8 {[%clk 0:00:42.8]} 33. Kc3
{[%clk 0:00:44.1]} 33... Be8 {[%clk 0:00:27]} 34. Bxe8 {[%clk 0:00:35.2]} 34...
Kxe8 {[%clk 0:00:26.9]} 35. Kb4 {[%clk 0:00:35.2]} 35... Kd7 {[%clk 0:00:26.4]}
36. Ka5 {[%clk 0:00:34.8]} 36... Kc6 {[%clk 0:00:24.9]} 37. Kxa6 {[%clk
0:00:34.3]} 37... Kc5 {[%clk 0:00:24.1]} 38. a4 {[%clk 0:00:33.1]} 38... bxa4
{[%clk 0:00:18.8]} 39. bxa4 {[%clk 0:00:32.3]} 39... Kb4 {[%clk 0:00:18.4]} 40.
a5 {[%clk 0:00:31.4]} 40... c5 {[%clk 0:00:18.1]} 41. c3+ {[%clk 0:00:28.2]}
41... Kxc3 {[%clk 0:00:16.9]} 42. Kb5 {[%clk 0:00:28]} 42... Kd4 {[%clk
0:00:15.8]} 43. a6 {[%clk 0:00:27.6]} 43... c4 {[%clk 0:00:16.7]} 44. a7 {[%clk
0:00:27.5]} 44... c3 {[%clk 0:00:16.7]} 45. a8=Q {[%clk 0:00:26.1]} 45... Kd3
{[%clk 0:00:17.6]} 46. Qd8+ {[%clk 0:00:25.1]} 46... Kc2 {[%clk 0:00:15.4]} 47.
Qc7 {[%clk 0:00:22.1]} 47... Kd3 {[%clk 0:00:15]} 48. Kb4 {[%clk 0:00:19.8]}
48... c2 {[%clk 0:00:14.9]} 49. Qd6+ {[%clk 0:00:19.2]} 49... Ke2 {[%clk
0:00:13.6]} 50. Qc5 {[%clk 0:00:16.8]} 50... Kd1 {[%clk 0:00:13.1]} 51. Qd5+
{[%clk 0:00:14.8]} 51... Ke2 {[%clk 0:00:12.5]} 52. Qc4+ {[%clk 0:00:13.7]}
52... Kd1 {[%clk 0:00:12.4]} 53. Qb3 {[%clk 0:00:10.3]} 53... Kd2 {[%clk
0:00:12]} 54. Qb2 {[%clk 0:00:08.6]} 54... Kd1 {[%clk 0:00:11.6]} 55. Qb3 {[%clk
0:00:05.3]} 55... Kd2 {[%clk 0:00:11.6]} 56. Qb2 {[%clk 0:00:04.5]} 56... Kd1
{[%clk 0:00:11.5]} 57. Qb3 {[%clk 0:00:04.8]} 1/2-1/2

[Event "Betsys MČR v online bleskovém šachu 2021"]
[Site "Chess.com"]
[Date "2021.04.17"]
[Round "5"]
[White "pohoda1966"]
[Black "PetrSoucek"]
[Result "1-0"]
[WhiteElo "1734"]
[BlackElo "2005"]
[TimeControl "180+1"]
[EndTime "9:48:32 PDT"]
[Termination "Uživatel pohoda1966 zvítězil matem"]

1. e4 {[%clk 0:03:00.9]} 1... c5 {[%clk 0:02:59.3]} 2. Nc3 {[%clk 0:03:00]} 2...
a6 {[%clk 0:02:58.7]} 3. g3 {[%clk 0:02:45.8]} 3... b5 {[%clk 0:02:54.9]} 4. Bg2
{[%clk 0:02:41.2]} 4... Bb7 {[%clk 0:02:51.1]} 5. d3 {[%clk 0:02:37.9]} 5... e6
{[%clk 0:02:48.3]} 6. Be3 {[%clk 0:02:36]} 6... Nf6 {[%clk 0:02:46.8]} 7. Nge2
{[%clk 0:02:35.2]} 7... d5 {[%clk 0:02:46.7]} 8. exd5 {[%clk 0:02:34.6]} 8...
exd5 {[%clk 0:02:46.9]} 9. d4 {[%clk 0:02:34.7]} 9... c4 {[%clk 0:02:42.4]} 10.
O-O {[%clk 0:02:22.5]} 10... Bd6 {[%clk 0:02:41]} 11. Qd2 {[%clk 0:02:20.9]}
11... O-O {[%clk 0:02:39.9]} 12. Nf4 {[%clk 0:02:11.1]} 12... Bc7 {[%clk
0:02:20.2]} 13. Rfe1 {[%clk 0:01:59]} 13... b4 {[%clk 0:02:06.7]} 14. Na4 {[%clk
0:01:54.1]} 14... Nbd7 {[%clk 0:02:05.9]} 15. Nc5 {[%clk 0:01:52]} 15... Nxc5
{[%clk 0:02:04.2]} 16. dxc5 {[%clk 0:01:51.9]} 16... a5 {[%clk 0:01:46.3]} 17.
c3 {[%clk 0:01:45.8]} 17... bxc3 {[%clk 0:01:44.8]} 18. Qxc3 {[%clk 0:01:45]}
18... Qd7 {[%clk 0:00:57.9]} 19. Rad1 {[%clk 0:01:42.3]} 19... Rfd8 {[%clk
0:00:55.9]} 20. Bd4 {[%clk 0:01:26.6]} 20... Bxf4 {[%clk 0:00:51.6]} 21. Bxf6
{[%clk 0:01:21]} 21... Bh6 {[%clk 0:00:26.8]} 22. Bd4 {[%clk 0:01:07.8]} 22...
Qb5 {[%clk 0:00:21.9]} 23. Re5 {[%clk 0:00:57.7]} 23... Qb4 {[%clk 0:00:15.3]}
24. a3 {[%clk 0:00:53.5]} 24... Qxc3 {[%clk 0:00:14.4]} 25. Bxc3 {[%clk
0:00:53.2]} 25... f6 {[%clk 0:00:09.2]} 26. Re7 {[%clk 0:00:45.4]} 26... Bc6
{[%clk 0:00:07.8]} 27. Rc7 {[%clk 0:00:40]} 27... Rac8 {[%clk 0:00:04.1]} 28.
Bxa5 {[%clk 0:00:39]} 28... Rxc7 {[%clk 0:00:03.8]} 29. Bxc7 {[%clk 0:00:38.3]}
29... Rd7 {[%clk 0:00:04.5]} 30. Bd6 {[%clk 0:00:37.3]} 30... g6 {[%clk
0:00:03.6]} 31. Bxd5+ {[%clk 0:00:36.2]} 31... Bxd5 {[%clk 0:00:04]} 32. Rxd5
{[%clk 0:00:35.4]} 32... Bf8 {[%clk 0:00:04.7]} 33. Rd4 {[%clk 0:00:28]} 33...
Bxd6 {[%clk 0:00:02.5]} 34. cxd6 {[%clk 0:00:26.3]} 34... Kf7 {[%clk 0:00:02.3]}
35. Rxc4 {[%clk 0:00:26.3]} 35... Rxd6 {[%clk 0:00:02.8]} 36. b4 {[%clk
0:00:25.3]} 36... Ke6 {[%clk 0:00:02.9]} 37. b5 {[%clk 0:00:23.5]} 37... Rd1+
{[%clk 0:00:03.3]} 38. Kg2 {[%clk 0:00:22.4]} 38... Ra1 {[%clk 0:00:03.9]} 39.
a4 {[%clk 0:00:21.6]} 39... Rb1 {[%clk 0:00:03.9]} 40. Kf3 {[%clk 0:00:19.4]}
40... f5 {[%clk 0:00:02.9]} 41. Ke2 {[%clk 0:00:18.5]} 41... Kd5 {[%clk
0:00:02.7]} 42. Rc8 {[%clk 0:00:16.6]} 42... Kd4 {[%clk 0:00:02.3]} 43. Rd8+
{[%clk 0:00:16.2]} 43... Kc3 {[%clk 0:00:02.4]} 44. Rb8 {[%clk 0:00:14.3]} 44...
Ra1 {[%clk 0:00:02.1]} 45. Ra8 {[%clk 0:00:12]} 45... Kd4 {[%clk 0:00:01.5]} 46.
b6 {[%clk 0:00:11.6]} 46... Ra2+ {[%clk 0:00:01.4]} 47. Kf3 {[%clk 0:00:10.5]}
47... Ra3+ {[%clk 0:00:01.1]} 48. Kg2 {[%clk 0:00:09.9]} 48... Kc5 {[%clk
0:00:01.9]} 49. b7 {[%clk 0:00:09.7]} 49... Rb3 {[%clk 0:00:02.8]} 50. b8=Q
{[%clk 0:00:09]} 50... Rxb8 {[%clk 0:00:03.7]} 51. Rxb8 {[%clk 0:00:08.6]} 51...
g5 {[%clk 0:00:04.6]} 52. a5 {[%clk 0:00:08.7]} 52... f4 {[%clk 0:00:04.9]} 53.
gxf4 {[%clk 0:00:08]} 53... gxf4 {[%clk 0:00:05.8]} 54. a6 {[%clk 0:00:08.1]}
54... f3+ {[%clk 0:00:06.7]} 55. Kxf3 {[%clk 0:00:06.9]} 55... h5 {[%clk
0:00:07.6]} 56. a7 {[%clk 0:00:06.6]} 56... h4 {[%clk 0:00:08.5]} 57. a8=Q
{[%clk 0:00:06.5]} 57... h3 {[%clk 0:00:09.4]} 58. Rd8 {[%clk 0:00:06.4]} 58...
Kb4 {[%clk 0:00:09.4]} 59. Qc8 {[%clk 0:00:05.8]} 59... Kb5 {[%clk 0:00:10.3]}
60. Rd7 {[%clk 0:00:05.5]} 60... Ka5 {[%clk 0:00:10.1]} 61. Rb7 {[%clk
0:00:05.4]} 61... Ka6 {[%clk 0:00:10.1]} 62. Qa8# {[%clk 0:00:05.2]} 1-0

[Event "Betsys MČR v online bleskovém šachu 2021"]
[Site "Chess.com"]
[Date "2021.04.17"]
[Round "5"]
[White "DenryS"]
[Black "FaceOfLightning"]
[Result "0-1"]
[WhiteElo "2089"]
[BlackElo "2015"]
[TimeControl "180+1"]
[EndTime "9:48:35 PDT"]
[Termination "Uživatel FaceOfLightning zvítězil matem"]

1. d4 {[%clk 0:03:00.9]} 1... Nf6 {[%clk 0:02:56.7]} 2. Nf3 {[%clk 0:03:01.8]}
2... d5 {[%clk 0:02:53.1]} 3. Bf4 {[%clk 0:03:02.7]} 3... Bf5 {[%clk 0:02:51.5]}
4. e3 {[%clk 0:03:02.6]} 4... c6 {[%clk 0:02:50.8]} 5. c4 {[%clk 0:03:03.5]}
5... e6 {[%clk 0:02:49.9]} 6. Nc3 {[%clk 0:03:02]} 6... Bd6 {[%clk 0:02:47.9]}
7. Bxd6 {[%clk 0:02:55.2]} 7... Qxd6 {[%clk 0:02:47.4]} 8. Qb3 {[%clk
0:02:55.7]} 8... Qe7 {[%clk 0:02:42.2]} 9. Be2 {[%clk 0:02:50]} 9... O-O {[%clk
0:02:41.3]} 10. O-O {[%clk 0:02:48.3]} 10... dxc4 {[%clk 0:02:37.2]} 11. Qxc4
{[%clk 0:02:44.4]} 11... Nbd7 {[%clk 0:02:36.6]} 12. Rac1 {[%clk 0:02:35.9]}
12... Nb6 {[%clk 0:02:35]} 13. Qb3 {[%clk 0:02:35.2]} 13... Ne4 {[%clk
0:02:30.2]} 14. Nxe4 {[%clk 0:02:32.1]} 14... Bxe4 {[%clk 0:02:29.5]} 15. Ne5
{[%clk 0:02:32.6]} 15... Bd5 {[%clk 0:02:25.9]} 16. Nc4 {[%clk 0:02:26.2]} 16...
Nxc4 {[%clk 0:02:18.9]} 17. Bxc4 {[%clk 0:02:25.7]} 17... Rfd8 {[%clk
0:02:13.7]} 18. Rfd1 {[%clk 0:02:19.9]} 18... Rac8 {[%clk 0:02:07]} 19. Rc3
{[%clk 0:02:14.7]} 19... Bxc4 {[%clk 0:02:03.4]} 20. Qxc4 {[%clk 0:02:09.8]}
20... e5 {[%clk 0:02:03.2]} 21. Rcd3 {[%clk 0:02:07.8]} 21... exd4 {[%clk
0:01:58.4]} 22. Rxd4 {[%clk 0:02:07.5]} 22... h6 {[%clk 0:01:52]} 23. Qd3 {[%clk
0:01:54.3]} 23... Rxd4 {[%clk 0:01:44.6]} 24. Qxd4 {[%clk 0:01:53.4]} 24... a6
{[%clk 0:01:26.9]} 25. Qd7 {[%clk 0:01:52.6]} 25... Re8 {[%clk 0:01:24.5]} 26.
h3 {[%clk 0:01:47]} 26... Kh7 {[%clk 0:01:18.8]} 27. Qf5+ {[%clk 0:01:43.3]}
27... g6 {[%clk 0:01:17.1]} 28. Qf3 {[%clk 0:01:33.6]} 28... Kg7 {[%clk
0:01:13.8]} 29. Rd4 {[%clk 0:01:31.6]} 29... Rd8 {[%clk 0:01:11]} 30. Qf4 {[%clk
0:01:15.9]} 30... Rxd4 {[%clk 0:01:07.8]} 31. Qxd4+ {[%clk 0:01:15.5]} 31... Kh7
{[%clk 0:01:07.7]} 32. a3 {[%clk 0:01:11.6]} 32... c5 {[%clk 0:01:06]} 33. Qd5
{[%clk 0:01:10]} 33... b5 {[%clk 0:00:59.9]} 34. Kf1 {[%clk 0:01:10]} 34... Kg7
{[%clk 0:00:58.5]} 35. Qc6 {[%clk 0:01:08.6]} 35... Qe5 {[%clk 0:00:43.1]} 36.
b3 {[%clk 0:00:52.6]} 36... Qc3 {[%clk 0:00:41.1]} 37. b4 {[%clk 0:00:34.9]}
37... Qxa3 {[%clk 0:00:37.8]} 38. Qxc5 {[%clk 0:00:33]} 38... Qa1+ {[%clk
0:00:35.7]} 39. Ke2 {[%clk 0:00:32.4]} 39... Qb2+ {[%clk 0:00:34.9]} 40. Kf3
{[%clk 0:00:32]} 40... Qf6+ {[%clk 0:00:33.2]} 41. Ke2 {[%clk 0:00:28.5]} 41...
Qb2+ {[%clk 0:00:32.3]} 42. Kd3 {[%clk 0:00:28.4]} 42... Qxf2 {[%clk 0:00:29.3]}
43. Qe5+ {[%clk 0:00:26.9]} 43... Kh7 {[%clk 0:00:27.8]} 44. Qf4 {[%clk
0:00:19.1]} 44... Qxf4 {[%clk 0:00:20.6]} 45. exf4 {[%clk 0:00:19.2]} 45... Kg7
{[%clk 0:00:19.7]} 46. Kd4 {[%clk 0:00:19.5]} 46... Kf6 {[%clk 0:00:19.4]} 47.
g4 {[%clk 0:00:19.4]} 47... Ke6 {[%clk 0:00:17.9]} 48. Kc5 {[%clk 0:00:19.6]}
48... g5 {[%clk 0:00:15.4]} 49. f5+ {[%clk 0:00:14.8]} 49... Ke5 {[%clk
0:00:15.2]} 50. Kb6 {[%clk 0:00:10.1]} 50... Kd5 {[%clk 0:00:14.8]} 51. Kxa6
{[%clk 0:00:11]} 51... Kc4 {[%clk 0:00:13]} 52. Kb6 {[%clk 0:00:04.7]} 52...
Kxb4 {[%clk 0:00:12.5]} 53. Kc6 {[%clk 0:00:05.1]} 53... Kc4 {[%clk 0:00:12.6]}
54. Kd6 {[%clk 0:00:05.7]} 54... b4 {[%clk 0:00:13]} 55. Ke7 {[%clk 0:00:06.3]}
55... b3 {[%clk 0:00:13]} 56. Kxf7 {[%clk 0:00:06.8]} 56... b2 {[%clk
0:00:13.5]} 57. Kg6 {[%clk 0:00:06.9]} 57... b1=Q {[%clk 0:00:13.4]} 58. Kxh6
{[%clk 0:00:06.8]} 58... Qb6+ {[%clk 0:00:13]} 59. Kxg5 {[%clk 0:00:06.3]} 59...
Qd8+ {[%clk 0:00:13]} 60. f6 {[%clk 0:00:06.4]} 60... Kd5 {[%clk 0:00:13.1]} 61.
Kg6 {[%clk 0:00:06.9]} 61... Ke6 {[%clk 0:00:13.1]} 62. g5 {[%clk 0:00:07.4]}
62... Qg8+ {[%clk 0:00:12.6]} 63. Kh5 {[%clk 0:00:07.7]} 63... Kf5 {[%clk
0:00:12.4]} 64. h4 {[%clk 0:00:07.8]} 64... Qh7# {[%clk 0:00:12.1]} 0-1